[Event "Early-Titled-Tuesday-Blitz-March-05-2024"]
[Site "Chess.com"]
[Date "2024.03.05"]
[Round "7"]
[White "LikeWater"]
[Black "Road2GM3000"]
[Result "1-0"]
[WhiteElo "2687"]
[BlackElo "2503"]
[TimeControl "180+1"]
[EndTime "9:18:48 PST"]
[Termination "LikeWater won by checkmate"]

1. e4 {[%clk 0:03:00.9]} 1... c5 {[%clk 0:03:00.2]} 2. Nf3 {[%clk 0:03:00.8]}
2... d6 {[%clk 0:03:01]} 3. Bc4 {[%clk 0:03:01]} 3... Nf6 {[%clk 0:03:01.4]} 4.
d3 {[%clk 0:03:00.6]} 4... e6 {[%clk 0:03:01.8]} 5. O-O {[%clk 0:03:00.3]} 5...
Be7 {[%clk 0:03:02.1]} 6. a3 {[%clk 0:03:00.4]} 6... O-O {[%clk 0:03:02.3]} 7.
Ba2 {[%clk 0:03:00.5]} 7... b5 {[%clk 0:03:00.2]} 8. Nc3 {[%clk 0:02:59.6]} 8...
a6 {[%clk 0:02:59.7]} 9. Ne2 {[%clk 0:02:58.8]} 9... Bb7 {[%clk 0:02:59.6]} 10.
Ng3 {[%clk 0:02:59]} 10... Nbd7 {[%clk 0:02:59.8]} 11. Re1 {[%clk 0:02:59]}
11... Ne5 {[%clk 0:02:56.8]} 12. Ng5 {[%clk 0:02:49.7]} 12... h6 {[%clk
0:02:50.1]} 13. Nh3 {[%clk 0:02:48.7]} 13... Ng6 {[%clk 0:02:31.7]} 14. f4
{[%clk 0:02:34]} 14... Qc7 {[%clk 0:02:16.6]} 15. f5 {[%clk 0:02:27.9]} 15...
exf5 {[%clk 0:02:16.4]} 16. Nxf5 {[%clk 0:02:28.8]} 16... Bc8 {[%clk 0:01:59.6]}
17. Rf1 {[%clk 0:01:59.2]} 17... Be6 {[%clk 0:01:56.8]} 18. Be3 {[%clk
0:01:27.8]} 18... Bxa2 {[%clk 0:01:55.7]} 19. Rxa2 {[%clk 0:01:28.7]} 19... d5
{[%clk 0:01:54.7]} 20. Qd2 {[%clk 0:01:20.6]} 20... Rfe8 {[%clk 0:01:00.4]} 21.
Nf4 {[%clk 0:00:51.4]} 21... dxe4 {[%clk 0:00:53.4]} 22. dxe4 {[%clk 0:00:32.8]}
22... Nxe4 {[%clk 0:00:51.9]} 23. Qd3 {[%clk 0:00:32.3]} 23... Nf6 {[%clk
0:00:46.6]} 24. Raa1 {[%clk 0:00:20.1]} 24... Rad8 {[%clk 0:00:46.1]} 25. Qc3
{[%clk 0:00:19]} 25... c4 {[%clk 0:00:39.2]} 26. Rae1 {[%clk 0:00:16.7]} 26...
Nxf4 {[%clk 0:00:36.7]} 27. Bxf4 {[%clk 0:00:17]} 27... Qb6+ {[%clk 0:00:36.3]}
28. Kh1 {[%clk 0:00:16.4]} 28... Nd5 {[%clk 0:00:31.7]} 29. Qxg7# {[%clk
0:00:15.4]} 1-0

[Event "Early-Titled-Tuesday-Blitz-March-05-2024"]
[Site "Chess.com"]
[Date "2024.03.05"]
[Round "7"]
[White "Joachim100x"]
[Black "FREDERICKtheMATE"]
[Result "1/2-1/2"]
[WhiteElo "2502"]
[BlackElo "2715"]
[TimeControl "180+1"]
[EndTime "9:18:49 PST"]
[Termination "Game drawn by repetition"]

1. Nc3 {[%clk 0:03:00.9]} 1... d5 {[%clk 0:02:58.8]} 2. d4 {[%clk 0:02:59.3]}
2... Nf6 {[%clk 0:02:58.3]} 3. Bg5 {[%clk 0:02:58.3]} 3... Bf5 {[%clk
0:02:53.6]} 4. e3 {[%clk 0:02:58.1]} 4... e6 {[%clk 0:02:53.2]} 5. Bd3 {[%clk
0:02:57.8]} 5... Bxd3 {[%clk 0:02:52.4]} 6. Qxd3 {[%clk 0:02:57.9]} 6... Nbd7
{[%clk 0:02:52.6]} 7. Nf3 {[%clk 0:02:58.2]} 7... h6 {[%clk 0:02:52.4]} 8. Bh4
{[%clk 0:02:58.1]} 8... Be7 {[%clk 0:02:52.7]} 9. O-O {[%clk 0:02:58.1]} 9...
O-O {[%clk 0:02:51.8]} 10. Rad1 {[%clk 0:02:55]} 10... c5 {[%clk 0:02:51.6]} 11.
dxc5 {[%clk 0:02:52.6]} 11... Nxc5 {[%clk 0:02:51.5]} 12. Qe2 {[%clk 0:02:52.9]}
12... Nfe4 {[%clk 0:02:51]} 13. Nxe4 {[%clk 0:02:49.3]} 13... Nxe4 {[%clk
0:02:49.8]} 14. Bxe7 {[%clk 0:02:48.9]} 14... Qxe7 {[%clk 0:02:50.7]} 15. Nd2
{[%clk 0:02:45]} 15... Nxd2 {[%clk 0:02:47.7]} 16. Rxd2 {[%clk 0:02:45.1]} 16...
Rfc8 {[%clk 0:02:47.7]} 17. c3 {[%clk 0:02:44.9]} 17... Rc4 {[%clk 0:02:47.4]}
18. Rfd1 {[%clk 0:02:44.8]} 18... Rac8 {[%clk 0:02:46.4]} 19. Rd4 {[%clk
0:02:44.7]} 19... f5 {[%clk 0:02:44.8]} 20. h3 {[%clk 0:02:44.6]} 20... b5
{[%clk 0:02:44.3]} 21. a3 {[%clk 0:02:43.6]} 21... a5 {[%clk 0:02:42.9]} 22. g4
{[%clk 0:02:30.3]} 22... fxg4 {[%clk 0:02:39]} 23. Qxg4 {[%clk 0:02:29.7]} 23...
b4 {[%clk 0:02:35.2]} 24. axb4 {[%clk 0:02:29.2]} 24... axb4 {[%clk 0:02:35.5]}
25. e4 {[%clk 0:02:28.1]} 25... bxc3 {[%clk 0:02:27.9]} 26. bxc3 {[%clk
0:02:28]} 26... dxe4 {[%clk 0:02:22.5]} 27. Qxe4 {[%clk 0:02:13.5]} 27... Rxc3
{[%clk 0:02:18.6]} 28. Rd6 {[%clk 0:01:54.9]} 28... Qg5+ {[%clk 0:02:00.1]} 29.
Kf1 {[%clk 0:01:49.5]} 29... R3c4 {[%clk 0:01:40.3]} 30. Qxe6+ {[%clk
0:01:41.5]} 30... Kh7 {[%clk 0:01:38.1]} 31. R6d5 {[%clk 0:01:36.4]} 31... Qf4
{[%clk 0:01:32.8]} 32. Qf5+ {[%clk 0:01:33.5]} 32... Qxf5 {[%clk 0:01:32.1]} 33.
Rxf5 {[%clk 0:01:31.4]} 33... R8c7 {[%clk 0:01:31.3]} 34. Kg2 {[%clk 0:01:29.6]}
34... R4c6 {[%clk 0:01:31.2]} 35. Rf3 {[%clk 0:01:28.8]} 35... g5 {[%clk
0:01:29.2]} 36. Rd4 {[%clk 0:01:26.8]} 36... Kg6 {[%clk 0:01:27.5]} 37. h4
{[%clk 0:01:26.9]} 37... Re6 {[%clk 0:01:25.9]} 38. hxg5 {[%clk 0:01:26.7]}
38... hxg5 {[%clk 0:01:25.9]} 39. Rd5 {[%clk 0:01:25.8]} 39... Rc4 {[%clk
0:01:22.5]} 40. Rg3 {[%clk 0:01:21.6]} 40... g4 {[%clk 0:01:20.6]} 41. Rd2
{[%clk 0:01:19.7]} 41... Kh5 {[%clk 0:01:10.9]} 42. f3 {[%clk 0:01:18.1]} 42...
Kh4 {[%clk 0:01:06.8]} 43. Rxg4+ {[%clk 0:01:16.6]} 43... Rxg4+ {[%clk
0:01:06.7]} 44. fxg4 {[%clk 0:01:16.8]} 44... Kxg4 {[%clk 0:01:07.3]} 45. Kf2
{[%clk 0:01:17.2]} 45... Kf4 {[%clk 0:01:07.4]} 46. Re2 {[%clk 0:01:17.1]} 46...
Rh6 {[%clk 0:01:06.7]} 47. Re8 {[%clk 0:01:15.5]} 47... Rh2+ {[%clk 0:01:06.9]}
48. Kg1 {[%clk 0:01:15.5]} 48... Ra2 {[%clk 0:01:07.8]} 49. Rf8+ {[%clk
0:01:15.2]} 49... Kg3 {[%clk 0:01:08.7]} 50. Rg8+ {[%clk 0:01:15.2]} 50... Kf3
{[%clk 0:01:09.3]} 51. Rf8+ {[%clk 0:01:15.5]} 51... Kg4 {[%clk 0:01:10]} 52.
Rg8+ {[%clk 0:01:15.8]} 52... Kf5 {[%clk 0:01:10.9]} 53. Rg2 {[%clk 0:01:15.9]}
53... Ra6 {[%clk 0:01:09.7]} 54. Rf2+ {[%clk 0:01:15.6]} 54... Ke5 {[%clk
0:01:10]} 55. Rg2 {[%clk 0:01:15.8]} 55... Kd5 {[%clk 0:01:10.2]} 56. Re2 {[%clk
0:01:15.9]} 56... Kd4 {[%clk 0:01:10.4]} 57. Kf2 {[%clk 0:01:16.3]} 57... Rf6+
{[%clk 0:01:10.2]} 58. Kg3 {[%clk 0:01:15.3]} 58... Rf5 {[%clk 0:01:11.1]} 59.
Rf2 {[%clk 0:01:15.2]} 59... Re5 {[%clk 0:01:12]} 60. Rf4+ {[%clk 0:01:15.1]}
60... Ke3 {[%clk 0:01:11.7]} 61. Rf3+ {[%clk 0:01:15.4]} 61... Ke2 {[%clk
0:01:12.2]} 62. Rf2+ {[%clk 0:01:15.6]} 62... Ke3 {[%clk 0:01:11.5]} 63. Rf3+
{[%clk 0:01:16]} 63... Ke4 {[%clk 0:01:12.2]} 64. Rf4+ {[%clk 0:01:16.4]} 64...
Kd5 {[%clk 0:01:13.1]} 65. Kg4 {[%clk 0:01:16.3]} 65... Ke6 {[%clk 0:01:14]} 66.
Kf3 {[%clk 0:01:16.2]} 66... Ra5 {[%clk 0:01:13.3]} 67. Re4+ {[%clk 0:01:16.1]}
67... Kf5 {[%clk 0:01:13]} 68. Rf4+ {[%clk 0:01:16.5]} 68... Kg5 {[%clk
0:01:13.7]} 69. Rg4+ {[%clk 0:01:16.8]} 69... Kh5 {[%clk 0:01:14.3]} 70. Re4
{[%clk 0:01:17.1]} 70... Rf5+ {[%clk 0:01:14.3]} 71. Rf4 {[%clk 0:01:17.2]}
71... Ra5 {[%clk 0:01:15.1]} 72. Re4 {[%clk 0:01:17.6]} 72... Ra3+ {[%clk
0:01:15.8]} 73. Re3 {[%clk 0:01:17.7]} 73... Ra5 {[%clk 0:01:16.7]} 74. Re4
{[%clk 0:01:17.9]} 1/2-1/2

[Event "Early-Titled-Tuesday-Blitz-March-05-2024"]
[Site "Chess.com"]
[Date "2024.03.05"]
[Round "7"]
[White "wannabe2700"]
[Black "Volodar_Murzin"]
[Result "0-1"]
[WhiteElo "2776"]
[BlackElo "2966"]
[TimeControl "180+1"]
[EndTime "9:18:56 PST"]
[Termination "Volodar_Murzin won by resignation"]

1. b3 {[%clk 0:03:00.9]} 1... e5 {[%clk 0:02:59.7]} 2. Bb2 {[%clk 0:03:01.8]}
2... Nc6 {[%clk 0:03:00.2]} 3. e3 {[%clk 0:03:02.3]} 3... Nge7 {[%clk
0:03:00.3]} 4. c4 {[%clk 0:03:01.6]} 4... g6 {[%clk 0:02:59.6]} 5. Nf3 {[%clk
0:02:57]} 5... Bg7 {[%clk 0:02:59.6]} 6. Nc3 {[%clk 0:02:52.1]} 6... O-O {[%clk
0:02:59]} 7. Be2 {[%clk 0:02:49.3]} 7... e4 {[%clk 0:02:57.6]} 8. Ng5 {[%clk
0:02:44]} 8... f5 {[%clk 0:02:57.7]} 9. d3 {[%clk 0:02:38.6]} 9... d5 {[%clk
0:02:51.1]} 10. d4 {[%clk 0:01:45.1]} 10... h6 {[%clk 0:02:33.6]} 11. Nh3 {[%clk
0:01:41.6]} 11... g5 {[%clk 0:02:28.8]} 12. cxd5 {[%clk 0:01:28.6]} 12... Nb4
{[%clk 0:02:28.9]} 13. Bc4 {[%clk 0:01:28.6]} 13... Nbxd5 {[%clk 0:01:45.7]} 14.
f3 {[%clk 0:01:02.4]} 14... c6 {[%clk 0:01:38.4]} 15. fxe4 {[%clk 0:00:59.9]}
15... fxe4 {[%clk 0:01:39.3]} 16. Nf2 {[%clk 0:00:59.7]} 16... b5 {[%clk
0:01:28.2]} 17. Bxd5+ {[%clk 0:00:52.6]} 17... cxd5 {[%clk 0:01:28.2]} 18. O-O
{[%clk 0:00:31.1]} 18... b4 {[%clk 0:01:25.5]} 19. Na4 {[%clk 0:00:30.2]} 19...
Nf5 {[%clk 0:01:20.8]} 20. Qd2 {[%clk 0:00:29.5]} 20... h5 {[%clk 0:00:53.7]}
21. a3 {[%clk 0:00:19.9]} 21... g4 {[%clk 0:00:51.6]} 22. axb4 {[%clk
0:00:16.4]} 22... Bh6 {[%clk 0:00:50.6]} 23. Nd1 {[%clk 0:00:15.9]} 23... Ba6
{[%clk 0:00:42.5]} 24. Rf2 {[%clk 0:00:15.3]} 24... g3 {[%clk 0:00:42.7]} 25.
hxg3 {[%clk 0:00:15.3]} 25... Nxg3 {[%clk 0:00:43.6]} 26. Nc5 {[%clk 0:00:14.6]}
26... Qh4 {[%clk 0:00:42.4]} 27. Rxf8+ {[%clk 0:00:12.9]} 27... Rxf8 {[%clk
0:00:43.3]} 28. Nf2 {[%clk 0:00:13.5]} 28... Ne2+ {[%clk 0:00:42.1]} 29. Qxe2
{[%clk 0:00:10.9]} 29... Bxe2 {[%clk 0:00:43]} 30. Nh3 {[%clk 0:00:06.9]} 30...
Bxe3+ {[%clk 0:00:38.9]} 31. Kh1 {[%clk 0:00:07.1]} 31... Bg4 {[%clk 0:00:38.6]}
0-1

[Event "Early-Titled-Tuesday-Blitz-March-05-2024"]
[Site "Chess.com"]
[Date "2024.03.05"]
[Round "7"]
[White "Kopytkin"]
[Black "ReadySkate"]
[Result "0-1"]
[WhiteElo "2444"]
[BlackElo "2579"]
[TimeControl "180+1"]
[EndTime "9:18:57 PST"]
[Termination "ReadySkate won on time"]

1. e4 {[%clk 0:03:00.9]} 1... c5 {[%clk 0:03:00]} 2. c3 {[%clk 0:02:59.9]} 2...
d5 {[%clk 0:03:00.1]} 3. exd5 {[%clk 0:02:59.3]} 3... Qxd5 {[%clk 0:03:01]} 4.
d4 {[%clk 0:02:59.7]} 4... Nc6 {[%clk 0:03:01.6]} 5. Nf3 {[%clk 0:03:00]} 5...
Bf5 {[%clk 0:03:01.7]} 6. Be2 {[%clk 0:02:59]} 6... Nf6 {[%clk 0:03:02.3]} 7. c4
{[%clk 0:02:55.9]} 7... Qd8 {[%clk 0:03:02.1]} 8. d5 {[%clk 0:02:56.4]} 8... Nb4
{[%clk 0:03:02.3]} 9. Na3 {[%clk 0:02:55.6]} 9... e6 {[%clk 0:03:01.9]} 10. Qa4+
{[%clk 0:02:34.1]} 10... Qd7 {[%clk 0:03:00.5]} 11. Qxd7+ {[%clk 0:02:34.1]}
11... Nxd7 {[%clk 0:03:01.4]} 12. dxe6 {[%clk 0:02:33.1]} 12... Bxe6 {[%clk
0:03:01.8]} 13. O-O {[%clk 0:02:33.3]} 13... O-O-O {[%clk 0:03:01.6]} 14. Bg5
{[%clk 0:02:28.5]} 14... f6 {[%clk 0:03:00.1]} 15. Bf4 {[%clk 0:02:26.5]} 15...
g5 {[%clk 0:02:58.6]} 16. Bg3 {[%clk 0:02:25.5]} 16... a6 {[%clk 0:02:58.8]} 17.
Ne1 {[%clk 0:01:57.6]} 17... h5 {[%clk 0:02:55.9]} 18. h3 {[%clk 0:01:55]} 18...
h4 {[%clk 0:02:55.3]} 19. Bh2 {[%clk 0:01:55]} 19... Bg7 {[%clk 0:02:54.9]} 20.
Nac2 {[%clk 0:01:46.1]} 20... f5 {[%clk 0:02:53]} 21. Nxb4 {[%clk 0:01:44.9]}
21... cxb4 {[%clk 0:02:53.9]} 22. Nd3 {[%clk 0:01:42.5]} 22... f4 {[%clk
0:02:49.8]} 23. Nxb4 {[%clk 0:01:35.4]} 23... Bxb2 {[%clk 0:02:48.4]} 24. Rab1
{[%clk 0:01:35.6]} 24... Bd4 {[%clk 0:02:42.3]} 25. Rfd1 {[%clk 0:01:34.3]}
25... Nc5 {[%clk 0:02:41.1]} 26. Nd5 {[%clk 0:01:22.3]} 26... Bxd5 {[%clk
0:02:38.8]} 27. Rxd4 {[%clk 0:01:21.7]} 27... Bc6 {[%clk 0:02:38.7]} 28. Rdd1
{[%clk 0:01:15.4]} 28... Rhe8 {[%clk 0:02:28]} 29. Kf1 {[%clk 0:01:13.9]} 29...
Bxg2+ {[%clk 0:02:25.5]} 30. Kxg2 {[%clk 0:01:10.3]} 30... Rxe2 {[%clk
0:02:25.8]} 31. Rxd8+ {[%clk 0:01:02.5]} 31... Kxd8 {[%clk 0:02:26.7]} 32. Kf3
{[%clk 0:01:02.9]} 32... Rxa2 {[%clk 0:02:25.1]} 33. Kg4 {[%clk 0:00:58.1]}
33... Rxf2 {[%clk 0:02:23.9]} 34. Bg1 {[%clk 0:00:58.4]} 34... Rg2+ {[%clk
0:02:23.5]} 35. Kf5 {[%clk 0:00:58.8]} 35... Nd7 {[%clk 0:02:13.7]} 36. Bd4
{[%clk 0:00:57.4]} 36... Kc7 {[%clk 0:02:08.4]} 37. Re1 {[%clk 0:00:52.4]} 37...
f3 {[%clk 0:02:04.3]} 38. Rf1 {[%clk 0:00:45.8]} 38... Rg3 {[%clk 0:02:02.9]}
39. Be3 {[%clk 0:00:28.8]} 39... Rxh3 {[%clk 0:01:56.2]} 40. Bxg5 {[%clk
0:00:28.8]} 40... Nb6 {[%clk 0:01:51.8]} 41. Kg4 {[%clk 0:00:27.2]} 41... Rg3+
{[%clk 0:01:51.5]} 42. Kxh4 {[%clk 0:00:27.4]} 42... Rg2 {[%clk 0:01:51]} 43. c5
{[%clk 0:00:22.4]} 43... Nd7 {[%clk 0:01:47.2]} 44. Bf4+ {[%clk 0:00:07.9]}
44... Kc6 {[%clk 0:01:46.8]} 45. Bd6 {[%clk 0:00:08]} 45... Nxc5 {[%clk
0:01:46]} 46. Bf4 {[%clk 0:00:04.3]} 46... Ne6 {[%clk 0:01:44]} 47. Be3 {[%clk
0:00:03.8]} 47... f2 {[%clk 0:01:41.1]} 48. Bxf2 {[%clk 0:00:03.1]} 48... b5
{[%clk 0:01:39.5]} 49. Rc1+ {[%clk 0:00:04]} 49... Kd5 {[%clk 0:01:39.4]} 50.
Bg3 {[%clk 0:00:03.5]} 50... Nd4 {[%clk 0:01:38.7]} 51. Kg4 {[%clk 0:00:03.5]}
51... Rxg3+ {[%clk 0:01:38]} 52. Kxg3 {[%clk 0:00:02.6]} 52... Ne2+ {[%clk
0:01:38.4]} 0-1

[Event "Early-Titled-Tuesday-Blitz-March-05-2024"]
[Site "Chess.com"]
[Date "2024.03.05"]
[Round "7"]
[White "maurovargas01"]
[Black "ChessFanNM"]
[Result "0-1"]
[WhiteElo "1842"]
[BlackElo "2257"]
[TimeControl "180+1"]
[EndTime "9:18:57 PST"]
[Termination "ChessFanNM won on time"]

1. e4 {[%clk 0:02:57.5]} 1... e5 {[%clk 0:02:59.4]} 2. Nf3 {[%clk 0:02:34.7]}
2... Nc6 {[%clk 0:02:58.6]} 3. d4 {[%clk 0:02:25.9]} 3... exd4 {[%clk
0:02:56.1]} 4. Bc4 {[%clk 0:02:26.8]} 4... Nf6 {[%clk 0:02:55.8]} 5. e5 {[%clk
0:02:22.3]} 5... d5 {[%clk 0:02:27.5]} 6. Bb5 {[%clk 0:02:19.5]} 6... Ne4 {[%clk
0:02:20]} 7. Nxd4 {[%clk 0:02:14.4]} 7... Bd7 {[%clk 0:02:19]} 8. Bxc6 {[%clk
0:02:12.6]} 8... bxc6 {[%clk 0:02:18.5]} 9. O-O {[%clk 0:02:12.5]} 9... Bc5
{[%clk 0:02:16.4]} 10. c3 {[%clk 0:01:43.8]} 10... Bb6 {[%clk 0:02:12.5]} 11. f3
{[%clk 0:01:38.1]} 11... Ng5 {[%clk 0:02:11.5]} 12. Be3 {[%clk 0:01:37]} 12...
Qe7 {[%clk 0:02:00.4]} 13. Nd2 {[%clk 0:01:34]} 13... c5 {[%clk 0:01:39.2]} 14.
N4b3 {[%clk 0:01:22.6]} 14... O-O {[%clk 0:01:38.3]} 15. f4 {[%clk 0:01:22.2]}
15... Ne4 {[%clk 0:01:24.8]} 16. Nxe4 {[%clk 0:01:17.7]} 16... dxe4 {[%clk
0:01:24.5]} 17. Qe2 {[%clk 0:01:07.4]} 17... Qe6 {[%clk 0:01:12.6]} 18. Nxc5
{[%clk 0:00:51]} 18... Bxc5 {[%clk 0:01:07.8]} 19. Bxc5 {[%clk 0:00:50]} 19...
Rfe8 {[%clk 0:01:05.2]} 20. Rad1 {[%clk 0:00:48.9]} 20... Bc6 {[%clk 0:01:05]}
21. Be3 {[%clk 0:00:39.6]} 21... Qxa2 {[%clk 0:01:02.5]} 22. Ra1 {[%clk
0:00:35]} 22... Qd5 {[%clk 0:00:58.8]} 23. Rxa7 {[%clk 0:00:26.1]} 23... Rxa7
{[%clk 0:00:52.1]} 24. Bxa7 {[%clk 0:00:25.7]} 24... Bb5 {[%clk 0:00:51.6]} 25.
Rd1 {[%clk 0:00:16.6]} 25... Qb7 {[%clk 0:00:45.2]} 26. Qe3 {[%clk 0:00:06]}
26... Ba4 {[%clk 0:00:41.5]} 0-1

[Event "Early-Titled-Tuesday-Blitz-March-05-2024"]
[Site "Chess.com"]
[Date "2024.03.05"]
[Round "7"]
[White "chessamical"]
[Black "Matols"]
[Result "1/2-1/2"]
[WhiteElo "2155"]
[BlackElo "2388"]
[TimeControl "180+1"]
[EndTime "9:18:59 PST"]
[Termination "Game drawn by agreement"]

1. d4 {[%clk 0:02:59.2]} 1... d5 {[%clk 0:02:59.5]} 2. Bf4 {[%clk 0:02:57.9]}
2... Nf6 {[%clk 0:02:59]} 3. e3 {[%clk 0:02:58.2]} 3... c5 {[%clk 0:02:59.5]} 4.
Nf3 {[%clk 0:02:58.4]} 4... Nc6 {[%clk 0:02:59.2]} 5. Nbd2 {[%clk 0:02:56.8]}
5... Bg4 {[%clk 0:02:59.5]} 6. c3 {[%clk 0:02:53.2]} 6... e6 {[%clk 0:02:59.7]}
7. Qb3 {[%clk 0:02:47.8]} 7... Qc8 {[%clk 0:02:59.2]} 8. h3 {[%clk 0:02:45.6]}
8... Bxf3 {[%clk 0:02:58.5]} 9. Nxf3 {[%clk 0:02:45.1]} 9... Be7 {[%clk
0:02:53.4]} 10. Be2 {[%clk 0:02:32]} 10... O-O {[%clk 0:02:52.7]} 11. O-O {[%clk
0:02:32.6]} 11... Ne4 {[%clk 0:02:50.8]} 12. Rfd1 {[%clk 0:02:31]} 12... c4
{[%clk 0:02:42.4]} 13. Qc2 {[%clk 0:02:30.9]} 13... f5 {[%clk 0:02:42.2]} 14.
Ne5 {[%clk 0:02:26.8]} 14... Nxe5 {[%clk 0:02:28]} 15. Bxe5 {[%clk 0:02:26.1]}
15... Bh4 {[%clk 0:02:26.8]} 16. g3 {[%clk 0:02:19.8]} 16... Bf6 {[%clk
0:02:25.8]} 17. Bxf6 {[%clk 0:02:13.2]} 17... Rxf6 {[%clk 0:02:26.7]} 18. Bf3
{[%clk 0:02:03.4]} 18... Qc7 {[%clk 0:02:24.5]} 19. Kg2 {[%clk 0:02:01.6]} 19...
Rg6 {[%clk 0:02:22.5]} 20. Bxe4 {[%clk 0:01:56.6]} 20... fxe4 {[%clk 0:02:23.4]}
21. b3 {[%clk 0:01:56.3]} 21... Rf8 {[%clk 0:02:12.4]} 22. bxc4 {[%clk
0:01:49.3]} 22... Qxc4 {[%clk 0:02:13.3]} 23. Rab1 {[%clk 0:01:41.6]} 23... b5
{[%clk 0:01:48.4]} 24. Rb4 {[%clk 0:01:40.1]} 24... Qc6 {[%clk 0:01:34.3]} 25.
Rdb1 {[%clk 0:01:37.1]} 25... a6 {[%clk 0:01:32.2]} 26. a4 {[%clk 0:01:36.6]}
26... Qc7 {[%clk 0:00:42.4]} 27. axb5 {[%clk 0:01:27.1]} 27... axb5 {[%clk
0:00:36.5]} 28. Rxb5 {[%clk 0:01:23]} 28... Qf7 {[%clk 0:00:37.1]} 29. Rb8
{[%clk 0:01:14.1]} 29... Qf3+ {[%clk 0:00:33.2]} 30. Kh2 {[%clk 0:01:13.7]}
30... Rf6 {[%clk 0:00:28]} 31. Rxf8+ {[%clk 0:01:07.7]} 31... Rxf8 {[%clk
0:00:28.9]} 32. Rb2 {[%clk 0:01:06.7]} 32... h5 {[%clk 0:00:28]} 33. Qe2 {[%clk
0:01:06.6]} 33... Qf5 {[%clk 0:00:24.3]} 34. h4 {[%clk 0:00:57.1]} 34... Rc8
{[%clk 0:00:22.5]} 35. Rc2 {[%clk 0:00:54.6]} 35... Rc4 {[%clk 0:00:21.8]} 36.
Kg2 {[%clk 0:00:52.7]} 36... Kh7 {[%clk 0:00:21]} 37. Rc1 {[%clk 0:00:40.2]}
37... Kg6 {[%clk 0:00:20.7]} 38. Rc2 {[%clk 0:00:36.7]} 1/2-1/2

[Event "Early-Titled-Tuesday-Blitz-March-05-2024"]
[Site "Chess.com"]
[Date "2024.03.05"]
[Round "7"]
[White "Iball95"]
[Black "GlavkonVVS"]
[Result "1-0"]
[WhiteElo "2909"]
[BlackElo "2562"]
[TimeControl "180+1"]
[EndTime "9:19:00 PST"]
[Termination "Iball95 won by resignation"]

1. e4 {[%clk 0:02:59.7]} 1... Nf6 {[%clk 0:03:00.6]} 2. e5 {[%clk 0:02:59.3]}
2... Nd5 {[%clk 0:03:00.9]} 3. c4 {[%clk 0:03:00]} 3... Nb6 {[%clk 0:03:01.2]}
4. c5 {[%clk 0:03:00.7]} 4... Nd5 {[%clk 0:03:01.3]} 5. Bc4 {[%clk 0:03:01.4]}
5... e6 {[%clk 0:03:01.9]} 6. d4 {[%clk 0:03:01.7]} 6... b6 {[%clk 0:03:02]} 7.
cxb6 {[%clk 0:02:58.6]} 7... axb6 {[%clk 0:03:02.3]} 8. Nc3 {[%clk 0:02:53.1]}
8... c6 {[%clk 0:03:02.4]} 9. Nh3 {[%clk 0:02:50.9]} 9... Ba6 {[%clk 0:03:02]}
10. Bxa6 {[%clk 0:02:49.8]} 10... Nxa6 {[%clk 0:03:01.9]} 11. O-O {[%clk
0:02:50]} 11... Be7 {[%clk 0:03:02.2]} 12. Qg4 {[%clk 0:02:50.5]} 12... Kf8
{[%clk 0:02:54.5]} 13. Bg5 {[%clk 0:02:44.2]} 13... Nab4 {[%clk 0:02:36.1]} 14.
Ne4 {[%clk 0:02:35.3]} 14... h6 {[%clk 0:02:27.3]} 15. Bxe7+ {[%clk 0:02:33.7]}
15... Qxe7 {[%clk 0:02:27]} 16. a3 {[%clk 0:02:28.3]} 16... Nc2 {[%clk
0:02:24.1]} 17. Rad1 {[%clk 0:02:25.1]} 17... Ra4 {[%clk 0:02:24.1]} 18. Nd6
{[%clk 0:02:23.8]} 18... c5 {[%clk 0:02:19.4]} 19. f4 {[%clk 0:01:42]} 19...
Nce3 {[%clk 0:01:51.1]} 20. Qf3 {[%clk 0:01:27.5]} 20... Nxd1 {[%clk 0:01:47.5]}
21. Qxd1 {[%clk 0:01:22.2]} 21... Rxd4 {[%clk 0:01:46.7]} 22. Qb3 {[%clk
0:01:21.8]} 22... f5 {[%clk 0:01:42.8]} 23. Qg3 {[%clk 0:01:10.3]} 23... g5
{[%clk 0:01:38.2]} 24. fxg5 {[%clk 0:01:11.2]} 24... Rg4 {[%clk 0:01:37.3]} 25.
Qxg4 {[%clk 0:01:11.5]} 25... Ne3 {[%clk 0:01:37.1]} 26. Qf4 {[%clk 0:00:46.4]}
26... Nxf1 {[%clk 0:01:36.9]} 27. gxh6 {[%clk 0:00:46.6]} 27... Nxh2 {[%clk
0:01:24.6]} 28. Kxh2 {[%clk 0:00:47.5]} 28... Rg8 {[%clk 0:01:17.6]} 29. Qf3
{[%clk 0:00:39.8]} 29... Qd8 {[%clk 0:00:44.6]} 30. Qh5 {[%clk 0:00:32]} 30...
Qe7 {[%clk 0:00:43.7]} 31. Nf4 {[%clk 0:00:26.5]} 1-0